[Event "*** SCC Grand Prix: Titled Tuesday Blitz"]
[Site "Chess.com"]
[Date "2020.07.07"]
[Round "5"]
[White "Sharpchess22"]
[Black "JoliyRoger"]
[Result "1-0"]
[WhiteElo "2690"]
[BlackElo "2259"]
[TimeControl "180+1"]
[EndTime "10:54:14 PDT"]
[Termination "Sharpchess22 won by checkmate"]

1. d4 {[%clk 0:02:59.3]} 1... Nf6 {[%clk 0:02:59.3]} 2. Bg5 {[%clk 0:02:58.9]}
2... Ne4 {[%clk 0:02:58.9]} 3. h4 {[%clk 0:02:57.5]} 3... Nxg5 {[%clk
0:02:58.7]} 4. hxg5 {[%clk 0:02:57.2]} 4... g6 {[%clk 0:02:59.6]} 5. Nf3 {[%clk
0:02:56.2]} 5... Bg7 {[%clk 0:02:59.5]} 6. c3 {[%clk 0:02:52.9]} 6... d6 {[%clk
0:02:58]} 7. Qd2 {[%clk 0:02:51.8]} 7... Bg4 {[%clk 0:02:48.1]} 8. Qf4 {[%clk
0:02:51.3]} 8... Bxf3 {[%clk 0:02:46.4]} 9. Qxf3 {[%clk 0:02:49.5]} 9... c6
{[%clk 0:02:39.3]} 10. Nd2 {[%clk 0:02:47.3]} 10... d5 {[%clk 0:02:29.4]} 11. e4
{[%clk 0:02:35.8]} 11... e6 {[%clk 0:02:25.4]} 12. Qg3 {[%clk 0:02:34]} 12...
Qb6 {[%clk 0:02:12.5]} 13. Rb1 {[%clk 0:02:33.3]} 13... Nd7 {[%clk 0:02:05.7]}
14. Be2 {[%clk 0:02:23.1]} 14... h5 {[%clk 0:01:37.9]} 15. Qf4 {[%clk
0:02:03.4]} 15... e5 {[%clk 0:01:29.4]} 16. dxe5 {[%clk 0:02:03.2]} 16... Bxe5
{[%clk 0:01:29.6]} 17. Qh4 {[%clk 0:02:02.4]} 17... dxe4 {[%clk 0:01:25.7]} 18.
Nc4 {[%clk 0:01:57.5]} 18... Qc7 {[%clk 0:01:18.2]} 19. Qxe4 {[%clk 0:01:57.4]}
19... O-O-O {[%clk 0:01:18.6]} 20. g3 {[%clk 0:01:48.1]} 20... Rhe8 {[%clk
0:01:17.8]} 21. Qf3 {[%clk 0:01:48]} 21... Nc5 {[%clk 0:01:03.5]} 22. Kf1 {[%clk
0:01:43.6]} 22... Qe7 {[%clk 0:00:54.3]} 23. b4 {[%clk 0:01:27.1]} 23... Na4
{[%clk 0:00:48.7]} 24. Rb3 {[%clk 0:01:25.5]} 24... Qxg5 {[%clk 0:00:45.4]} 25.
b5 {[%clk 0:01:23.9]} 25... Nc5 {[%clk 0:00:43.5]} 26. Ra3 {[%clk 0:01:19.4]}
26... Bb8 {[%clk 0:00:41.4]} 27. bxc6 {[%clk 0:01:18.1]} 27... bxc6 {[%clk
0:00:37.9]} 28. Qxc6+ {[%clk 0:01:17.2]} 28... Bc7 {[%clk 0:00:38]} 29. Rxa7
{[%clk 0:01:16.1]} 29... Rd7 {[%clk 0:00:19.6]} 30. Ra8# {[%clk 0:01:14.1]} 1-0

[Event "*** SCC Grand Prix: Titled Tuesday Blitz"]
[Site "Chess.com"]
[Date "2020.07.07"]
[Round "5"]
[White "ailime26"]
[Black "Michaelson_11"]
[Result "0-1"]
[WhiteElo "1869"]
[BlackElo "2099"]
[TimeControl "180+1"]
[EndTime "10:54:17 PDT"]
[Termination "Michaelson_11 won by resignation"]

1. e4 {[%clk 0:03:00.9]} 1... c5 {[%clk 0:02:58.8]} 2. Nf3 {[%clk 0:02:57.8]}
2... Nc6 {[%clk 0:02:58]} 3. d4 {[%clk 0:02:55.2]} 3... cxd4 {[%clk 0:02:58.9]}
4. Nxd4 {[%clk 0:02:54]} 4... g6 {[%clk 0:02:59.8]} 5. c4 {[%clk 0:02:52.7]}
5... Nf6 {[%clk 0:02:59.1]} 6. Nc3 {[%clk 0:02:46]} 6... d6 {[%clk 0:02:58.3]}
7. Be3 {[%clk 0:02:25.2]} 7... Ng4 {[%clk 0:02:55.8]} 8. Nc2 {[%clk 0:02:17.2]}
8... Nxe3 {[%clk 0:02:52]} 9. Nxe3 {[%clk 0:02:16.4]} 9... Bg7 {[%clk
0:02:52.9]} 10. Be2 {[%clk 0:02:15.1]} 10... O-O {[%clk 0:02:53.8]} 11. O-O
{[%clk 0:02:13.1]} 11... Nd4 {[%clk 0:02:40.4]} 12. Bd3 {[%clk 0:02:09.1]} 12...
Bd7 {[%clk 0:02:34.5]} 13. Rc1 {[%clk 0:02:07.7]} 13... Rc8 {[%clk 0:02:34.2]}
14. b3 {[%clk 0:02:07.2]} 14... Ne6 {[%clk 0:02:33.7]} 15. Ncd5 {[%clk
0:02:04.7]} 15... Bc6 {[%clk 0:02:32.6]} 16. f4 {[%clk 0:02:03.2]} 16... Nc5
{[%clk 0:02:31.2]} 17. Bb1 {[%clk 0:02:00.4]} 17... e6 {[%clk 0:02:26.7]} 18.
Nc3 {[%clk 0:01:57.5]} 18... Qb6 {[%clk 0:02:24.4]} 19. Re1 {[%clk 0:01:04.9]}
19... Rfd8 {[%clk 0:02:13.1]} 20. Kh1 {[%clk 0:00:54.6]} 20... Bxc3 {[%clk
0:01:57.2]} 21. Rxc3 {[%clk 0:00:53.9]} 21... Bxe4 {[%clk 0:01:50.8]} 22. Bxe4
{[%clk 0:00:48.4]} 22... Nxe4 {[%clk 0:01:51.7]} 23. Rc2 {[%clk 0:00:48.1]}
23... f5 {[%clk 0:01:52.3]} 24. Qd3 {[%clk 0:00:35.7]} 24... d5 {[%clk
0:01:51.2]} 25. cxd5 {[%clk 0:00:26.9]} 25... Rxc2 {[%clk 0:01:50.1]} 26. Qxc2
{[%clk 0:00:25.5]} 26... exd5 {[%clk 0:01:49.9]} 27. g3 {[%clk 0:00:15.6]} 27...
d4 {[%clk 0:01:46.1]} 28. Nc4 {[%clk 0:00:14.5]} 28... d3 {[%clk 0:01:45]} 29.
Qc3 {[%clk 0:00:08.9]} 29... Nxc3 {[%clk 0:01:27.6]} 30. Nxb6 {[%clk 0:00:06.9]}
30... axb6 {[%clk 0:01:28.5]} 0-1

[Event "*** SCC Grand Prix: Titled Tuesday Blitz"]
[Site "Chess.com"]
[Date "2020.07.07"]
[Round "5"]
[White "GM_LOADING"]
[Black "sewin16"]
[Result "1-0"]
[WhiteElo "2570"]
[BlackElo "2409"]
[TimeControl "180+1"]
[EndTime "10:54:25 PDT"]
[Termination "GM_LOADING won by resignation"]

1. e4 {[%clk 0:03:00.5]} 1... e5 {[%clk 0:02:59.5]} 2. Nf3 {[%clk 0:02:56.2]}
2... Nc6 {[%clk 0:02:59]} 3. Bc4 {[%clk 0:02:54.9]} 3... Bc5 {[%clk 0:02:57.6]}
4. O-O {[%clk 0:02:54]} 4... Nf6 {[%clk 0:02:57]} 5. d3 {[%clk 0:02:53.3]} 5...
d6 {[%clk 0:02:56.3]} 6. c3 {[%clk 0:02:52.4]} 6... Bb6 {[%clk 0:02:54.7]} 7. a4
{[%clk 0:02:51.7]} 7... a5 {[%clk 0:02:53.6]} 8. Re1 {[%clk 0:02:48]} 8... h6
{[%clk 0:02:52.6]} 9. Nbd2 {[%clk 0:02:44.6]} 9... O-O {[%clk 0:02:51.6]} 10. h3
{[%clk 0:02:44.7]} 10... Re8 {[%clk 0:02:39.3]} 11. Nf1 {[%clk 0:02:38.9]} 11...
Be6 {[%clk 0:02:29.5]} 12. Bb5 {[%clk 0:02:33.5]} 12... Bd7 {[%clk 0:02:09.9]}
13. Ng3 {[%clk 0:02:30.6]} 13... Ne7 {[%clk 0:02:10]} 14. Bc4 {[%clk 0:02:30.4]}
14... Ng6 {[%clk 0:02:09]} 15. d4 {[%clk 0:02:23.1]} 15... exd4 {[%clk
0:02:02.3]} 16. cxd4 {[%clk 0:02:24]} 16... Be6 {[%clk 0:02:01]} 17. Bd3 {[%clk
0:02:20.2]} 17... Nf8 {[%clk 0:01:45.7]} 18. Be3 {[%clk 0:02:11.7]} 18... Bd7
{[%clk 0:01:14.1]} 19. Rc1 {[%clk 0:01:57.4]} 19... Bc6 {[%clk 0:01:13]} 20. Qc2
{[%clk 0:01:46.1]} 20... Rc8 {[%clk 0:00:55.4]} 21. b3 {[%clk 0:01:40.1]} 21...
Qe7 {[%clk 0:00:50.7]} 22. Qd2 {[%clk 0:01:24.1]} 22... Bxe4 {[%clk 0:00:43.1]}
23. Bxh6 {[%clk 0:01:08.9]} 23... d5 {[%clk 0:00:34.7]} 24. Bxg7 {[%clk
0:01:08.6]} 24... Kxg7 {[%clk 0:00:26.4]} 25. Nf5+ {[%clk 0:01:08.6]} 25... Bxf5
{[%clk 0:00:26.4]} 26. Rxe7 {[%clk 0:01:08.7]} 26... Rxe7 {[%clk 0:00:25.9]} 27.
Bxf5 {[%clk 0:01:08.9]} 27... Rce8 {[%clk 0:00:22.4]} 28. Qg5+ {[%clk
0:01:08.2]} 28... Ng6 {[%clk 0:00:22.3]} 29. Bxg6 {[%clk 0:01:08.6]} 29... fxg6
{[%clk 0:00:22]} 30. Ne5 {[%clk 0:01:08.9]} 1-0

[Event "*** SCC Grand Prix: Titled Tuesday Blitz"]
[Site "Chess.com"]
[Date "2020.07.07"]
[Round "5"]
[White "doctorcristian"]
[Black "MomchilPetkov"]
[Result "0-1"]
[WhiteElo "2394"]
[BlackElo "2547"]
[TimeControl "180+1"]
[EndTime "10:54:26 PDT"]
[Termination "MomchilPetkov won on time"]

1. d4 {[%clk 0:03:00.9]} 1... Nf6 {[%clk 0:02:59.2]} 2. c4 {[%clk 0:02:59.9]}
2... e6 {[%clk 0:02:58.6]} 3. Nc3 {[%clk 0:02:59.6]} 3... Bb4 {[%clk 0:02:58.1]}
4. e3 {[%clk 0:03:00.4]} 4... c5 {[%clk 0:02:57.1]} 5. Ne2 {[%clk 0:02:57.1]}
5... cxd4 {[%clk 0:02:56.1]} 6. exd4 {[%clk 0:02:56.6]} 6... O-O {[%clk
0:02:56.5]} 7. a3 {[%clk 0:02:55.6]} 7... Be7 {[%clk 0:02:56.9]} 8. Nf4 {[%clk
0:02:53.8]} 8... d6 {[%clk 0:02:54.8]} 9. Be2 {[%clk 0:02:51.5]} 9... e5 {[%clk
0:02:54.1]} 10. Nfd5 {[%clk 0:02:50.4]} 10... Nc6 {[%clk 0:02:46]} 11. Be3
{[%clk 0:02:48.1]} 11... Nxd5 {[%clk 0:02:23]} 12. Nxd5 {[%clk 0:02:43.9]} 12...
Bg5 {[%clk 0:02:20.1]} 13. O-O {[%clk 0:02:41.4]} 13... Bxe3 {[%clk 0:02:09.6]}
14. fxe3 {[%clk 0:02:40.9]} 14... Qg5 {[%clk 0:02:09.6]} 15. Rf3 {[%clk
0:01:47.7]} 15... Bd7 {[%clk 0:01:34.1]} 16. Rg3 {[%clk 0:01:43.5]} 16... Qh6
{[%clk 0:01:33.9]} 17. Qd3 {[%clk 0:01:36.1]} 17... Rad8 {[%clk 0:01:25.5]} 18.
Rf1 {[%clk 0:00:23.5]} 18... f5 {[%clk 0:01:23.3]} 19. Rh3 {[%clk 0:00:07.4]}
19... Qg6 {[%clk 0:01:15.3]} 20. Rg3 {[%clk 0:00:01.9]} 20... Qe8 {[%clk
0:01:09.2]} 0-1

[Event "*** SCC Grand Prix: Titled Tuesday Blitz"]
[Site "Chess.com"]
[Date "2020.07.07"]
[Round "5"]
[White "dianamirza"]
[Black "Vandros57"]
[Result "1-0"]
[WhiteElo "1973"]
[BlackElo "2107"]
[TimeControl "180+1"]
[EndTime "10:54:28 PDT"]
[Termination "dianamirza won by resignation"]

1. d4 {[%clk 0:03:00.4]} 1... d5 {[%clk 0:02:58.4]} 2. Nf3 {[%clk 0:03:00.1]}
2... Nf6 {[%clk 0:02:57]} 3. e3 {[%clk 0:03:00.5]} 3... e6 {[%clk 0:02:55.2]} 4.
Bd3 {[%clk 0:03:01.4]} 4... c5 {[%clk 0:02:53.6]} 5. b3 {[%clk 0:03:00.8]} 5...
Nc6 {[%clk 0:02:52.3]} 6. Bb2 {[%clk 0:02:55.5]} 6... Bd6 {[%clk 0:02:50.6]} 7.
Ne5 {[%clk 0:02:51.1]} 7... Bxe5 {[%clk 0:02:47.7]} 8. dxe5 {[%clk 0:02:52]}
8... Nd7 {[%clk 0:02:44.4]} 9. f4 {[%clk 0:02:52]} 9... b6 {[%clk 0:02:32.6]}
10. Nd2 {[%clk 0:02:49.9]} 10... a5 {[%clk 0:02:29.9]} 11. O-O {[%clk
0:02:44.9]} 11... Ba6 {[%clk 0:02:24.5]} 12. Nf3 {[%clk 0:02:43.4]} 12... Bxd3
{[%clk 0:02:22.6]} 13. Qxd3 {[%clk 0:02:44.3]} 13... g6 {[%clk 0:02:20.5]} 14.
Rad1 {[%clk 0:02:21.7]} 14... Qc7 {[%clk 0:02:17.2]} 15. c4 {[%clk 0:02:15.2]}
15... dxc4 {[%clk 0:02:10.9]} 16. Qxc4 {[%clk 0:02:13.9]} 16... O-O-O {[%clk
0:02:00]} 17. Nd2 {[%clk 0:02:00]} 17... Kb8 {[%clk 0:01:26.4]} 18. Ne4 {[%clk
0:01:59.7]} 18... Na7 {[%clk 0:01:13.4]} 19. Nd6 {[%clk 0:01:56.5]} 19... Rhf8
{[%clk 0:01:10.8]} 20. Rd2 {[%clk 0:01:52.3]} 20... Nc8 {[%clk 0:01:00.3]} 21.
Nb5 {[%clk 0:01:48.4]} 21... Qb7 {[%clk 0:00:55.4]} 22. Rfd1 {[%clk 0:01:45.2]}
22... Qc6 {[%clk 0:00:35]} 23. Nc3 {[%clk 0:01:34.2]} 23... Qc7 {[%clk
0:00:29.7]} 24. Ne4 {[%clk 0:01:32.9]} 24... Qc6 {[%clk 0:00:26.7]} 25. Nd6
{[%clk 0:01:28.3]} 25... Nxd6 {[%clk 0:00:25.5]} 26. Rxd6 {[%clk 0:01:29.2]}
26... Qc7 {[%clk 0:00:21.6]} 27. Qe4 {[%clk 0:01:23.5]} 27... Qb7 {[%clk
0:00:17.4]} 28. Qxb7+ {[%clk 0:01:08.1]} 28... Kxb7 {[%clk 0:00:15.2]} 29. Rxd7+
{[%clk 0:01:08.4]} 29... Rxd7 {[%clk 0:00:14.8]} 30. Rxd7+ {[%clk 0:01:09.3]}
1-0

[Event "*** SCC Grand Prix: Titled Tuesday Blitz"]
[Site "Chess.com"]
[Date "2020.07.07"]
[Round "5"]
[White "alexrustemov"]
[Black "ChessWarrior7197"]
[Result "0-1"]
[WhiteElo "2730"]
[BlackElo "2890"]
[TimeControl "180+1"]
[EndTime "10:54:35 PDT"]
[Termination "ChessWarrior7197 won by resignation"]

1. d4 {[%clk 0:03:00.9]} 1... d5 {[%clk 0:02:59.9]} 2. c4 {[%clk 0:03:00.6]}
2... e6 {[%clk 0:03:00.3]} 3. Nc3 {[%clk 0:02:59.9]} 3... c5 {[%clk 0:03:00.5]}
4. cxd5 {[%clk 0:02:59]} 4... exd5 {[%clk 0:03:01.4]} 5. Nf3 {[%clk 0:02:58.3]}
5... Nc6 {[%clk 0:03:01.8]} 6. g3 {[%clk 0:02:57.9]} 6... Nf6 {[%clk 0:03:01.7]}
7. Bg2 {[%clk 0:02:58.4]} 7... cxd4 {[%clk 0:03:02.6]} 8. Nxd4 {[%clk
0:02:57.3]} 8... Bc5 {[%clk 0:03:02.5]} 9. Nb3 {[%clk 0:02:57.1]} 9... Bb6
{[%clk 0:03:02.5]} 10. O-O {[%clk 0:02:57]} 10... d4 {[%clk 0:03:03]} 11. Na4
{[%clk 0:02:56.6]} 11... O-O {[%clk 0:03:02.9]} 12. Bg5 {[%clk 0:02:54.8]} 12...
Re8 {[%clk 0:03:02.4]} 13. Re1 {[%clk 0:02:54.5]} 13... h6 {[%clk 0:03:02.4]}
14. Nxb6 {[%clk 0:02:53.7]} 14... axb6 {[%clk 0:03:02.3]} 15. Bxf6 {[%clk
0:02:54.2]} 15... Qxf6 {[%clk 0:03:03.2]} 16. Bxc6 {[%clk 0:02:52.8]} 16... bxc6
{[%clk 0:03:04.1]} 17. Qxd4 {[%clk 0:02:51.2]} 17... Qd8 {[%clk 0:03:04.5]} 18.
Qc3 {[%clk 0:02:47.4]} 18... c5 {[%clk 0:03:04.1]} 19. Rad1 {[%clk 0:02:47.4]}
19... Qc7 {[%clk 0:03:03.8]} 20. Nc1 {[%clk 0:02:43.5]} 20... Ba6 {[%clk
0:03:02]} 21. f3 {[%clk 0:02:35.8]} 21... Rad8 {[%clk 0:03:01.2]} 22. Kf2 {[%clk
0:02:22.6]} 22... Rd7 {[%clk 0:02:57.7]} 23. Rxd7 {[%clk 0:02:12.4]} 23... Qxd7
{[%clk 0:02:57.8]} 24. Nd3 {[%clk 0:02:05]} 24... Rd8 {[%clk 0:02:56.6]} 25. a3
{[%clk 0:01:40.5]} 25... h5 {[%clk 0:02:45.3]} 26. Nf4 {[%clk 0:01:34.4]} 26...
h4 {[%clk 0:02:42.9]} 27. Qe5 {[%clk 0:01:20.8]} 27... Re8 {[%clk 0:02:36.8]}
28. Qd5 {[%clk 0:01:11.9]} 28... Qe7 {[%clk 0:02:36.9]} 29. Ng2 {[%clk
0:00:51.3]} 29... h3 {[%clk 0:02:33.2]} 30. Nf4 {[%clk 0:00:33.7]} 30... Qe3+
{[%clk 0:02:33.1]} 31. Kf1 {[%clk 0:00:33.3]} 31... g6 {[%clk 0:02:04.3]} 32. b4
{[%clk 0:00:24.4]} 32... Kg7 {[%clk 0:02:03.7]} 33. bxc5 {[%clk 0:00:23.8]}
33... bxc5 {[%clk 0:02:03.1]} 34. Qc6 {[%clk 0:00:20.7]} 34... Bc4 {[%clk
0:01:59.3]} 35. Qb7 {[%clk 0:00:08.5]} 35... g5 {[%clk 0:01:51.1]} 36. Nxh3
{[%clk 0:00:08.6]} 36... Bxe2+ {[%clk 0:01:47.5]} 37. Rxe2 {[%clk 0:00:09.1]}
37... Qxe2+ {[%clk 0:01:47]} 38. Kg1 {[%clk 0:00:10]} 38... Qe1+ {[%clk
0:01:47.1]} 0-1

[Event "*** SCC Grand Prix: Titled Tuesday Blitz"]
[Site "Chess.com"]
[Date "2020.07.07"]
[Round "5"]
[White "JiiHart"]
[Black "Quattroporte300"]
[Result "0-1"]
[WhiteElo "2125"]
[BlackElo "2293"]
[TimeControl "180+1"]
[EndTime "10:54:35 PDT"]
[Termination "Quattroporte300 won on time"]

1. e4 {[%clk 0:03:00.9]} 1... e5 {[%clk 0:02:59.3]} 2. Nf3 {[%clk 0:02:59.7]}
2... Nc6 {[%clk 0:02:58.8]} 3. d4 {[%clk 0:02:59.2]} 3... exd4 {[%clk
0:02:58.7]} 4. Nxd4 {[%clk 0:02:59.4]} 4... Nf6 {[%clk 0:02:58.3]} 5. Nc3 {[%clk
0:02:58.4]} 5... Bb4 {[%clk 0:02:57.4]} 6. Nxc6 {[%clk 0:02:58]} 6... bxc6
{[%clk 0:02:56.9]} 7. Bd2 {[%clk 0:02:55.8]} 7... O-O {[%clk 0:02:53.3]} 8. Bd3
{[%clk 0:02:55.1]} 8... d5 {[%clk 0:02:50.7]} 9. O-O {[%clk 0:02:38.3]} 9... Re8
{[%clk 0:02:46.4]} 10. exd5 {[%clk 0:02:29.1]} 10... cxd5 {[%clk 0:02:43.4]} 11.
Re1 {[%clk 0:02:21.7]} 11... Rxe1+ {[%clk 0:02:37.2]} 12. Qxe1 {[%clk
0:02:19.9]} 12... c6 {[%clk 0:02:37.4]} 13. Nxd5 {[%clk 0:01:56.1]} 13... Nxd5
{[%clk 0:02:26.5]} 14. Bxb4 {[%clk 0:01:51.7]} 14... Nxb4 {[%clk 0:02:24.3]} 15.
Qxb4 {[%clk 0:01:46.6]} 15... g6 {[%clk 0:02:07.9]} 16. Re1 {[%clk 0:01:43.5]}
16... Be6 {[%clk 0:02:08.2]} 17. Qc5 {[%clk 0:01:18.5]} 17... Bd5 {[%clk
0:02:02.7]} 18. f3 {[%clk 0:00:52.1]} 18... Rb8 {[%clk 0:01:57.5]} 19. b3 {[%clk
0:00:51.4]} 19... Qd7 {[%clk 0:01:49.1]} 20. Re7 {[%clk 0:00:44.6]} 20... Qd8
{[%clk 0:01:29.5]} 21. Qxa7 {[%clk 0:00:32.6]} 21... Ra8 {[%clk 0:01:27.7]} 22.
Qe3 {[%clk 0:00:31.9]} 22... Qd6 {[%clk 0:01:16.4]} 23. c4 {[%clk 0:00:25.6]}
23... Be6 {[%clk 0:01:11.9]} 24. Rb7 {[%clk 0:00:18.8]} 24... Rxa2 {[%clk
0:01:09.1]} 25. g3 {[%clk 0:00:13.4]} 25... Bh3 {[%clk 0:01:00.1]} 0-1

[Event "*** SCC Grand Prix: Titled Tuesday Blitz"]
[Site "Chess.com"]
[Date "2020.07.07"]
[Round "5"]
[White "TigrVShlyape"]
[Black "vovachesss"]
[Result "1/2-1/2"]
[WhiteElo "2891"]
[BlackElo "2577"]
[TimeControl "180+1"]
[EndTime "10:54:36 PDT"]
[Termination "Game drawn by agreement"]

1. d4 {[%clk 0:03:00.9]} 1... Nf6 {[%clk 0:02:59.6]} 2. Nf3 {[%clk 0:03:01.4]}
2... e6 {[%clk 0:02:58.7]} 3. Bf4 {[%clk 0:03:01.3]} 3... d5 {[%clk 0:02:59]} 4.
e3 {[%clk 0:03:00.9]} 4... Bd6 {[%clk 0:02:59.6]} 5. Ne5 {[%clk 0:03:01.1]} 5...
c5 {[%clk 0:02:59]} 6. c3 {[%clk 0:02:59.4]} 6... Qc7 {[%clk 0:02:58.9]} 7. Nd2
{[%clk 0:02:53.1]} 7... O-O {[%clk 0:02:58.7]} 8. Bd3 {[%clk 0:02:48.9]} 8...
Nc6 {[%clk 0:02:58.3]} 9. Nxc6 {[%clk 0:02:35]} 9... bxc6 {[%clk 0:02:52.4]} 10.
Bxd6 {[%clk 0:02:22.2]} 10... Qxd6 {[%clk 0:02:53.3]} 11. Rc1 {[%clk 0:01:45.7]}
11... e5 {[%clk 0:02:50.4]} 12. dxe5 {[%clk 0:01:44]} 12... Qxe5 {[%clk
0:02:51.3]} 13. Nf3 {[%clk 0:01:43.7]} 13... Qe7 {[%clk 0:02:38.5]} 14. O-O
{[%clk 0:01:42.6]} 14... Bg4 {[%clk 0:02:37.8]} 15. Be2 {[%clk 0:01:39.6]} 15...
Rfb8 {[%clk 0:02:24.1]} 16. b3 {[%clk 0:01:33.2]} 16... a5 {[%clk 0:02:23.4]}
17. c4 {[%clk 0:01:26.9]} 17... a4 {[%clk 0:02:19.2]} 18. cxd5 {[%clk
0:01:26.8]} 18... cxd5 {[%clk 0:02:19.2]} 19. Qc2 {[%clk 0:01:23]} 19... axb3
{[%clk 0:02:16.9]} 20. axb3 {[%clk 0:01:22.6]} 20... Rc8 {[%clk 0:01:52.3]} 21.
Rfe1 {[%clk 0:01:17.4]} 21... h6 {[%clk 0:01:50.9]} 22. h3 {[%clk 0:01:14.8]}
22... Bh5 {[%clk 0:01:45.7]} 23. Qb2 {[%clk 0:01:08.3]} 23... Rab8 {[%clk
0:01:43.2]} 24. Qc2 {[%clk 0:01:04]} 24... Qb7 {[%clk 0:01:23.6]} 25. Nd2 {[%clk
0:01:02.5]} 25... Bxe2 {[%clk 0:01:20.1]} 26. Rxe2 {[%clk 0:01:02.6]} 26... Qb4
{[%clk 0:01:05.8]} 27. Qd3 {[%clk 0:01:00]} 27... Qa3 {[%clk 0:00:58.8]} 28. Qc2
{[%clk 0:00:44.7]} 28... Qb4 {[%clk 0:00:46.3]} 29. Ree1 {[%clk 0:00:43.8]}
29... Rb5 {[%clk 0:00:42.4]} 30. Qc3 {[%clk 0:00:43]} 1/2-1/2

[Event "*** SCC Grand Prix: Titled Tuesday Blitz"]
[Site "Chess.com"]
[Date "2020.07.07"]
[Round "5"]
[White "QuintilianoR"]
[Black "1f3_2g41-0"]
[Result "1-0"]
[WhiteElo "2664"]
[BlackElo "2300"]
[TimeControl "180+1"]
[EndTime "10:54:37 PDT"]
[Termination "QuintilianoR won by checkmate"]

1. Nf3 {[%clk 0:03:00.9]} 1... d5 {[%clk 0:02:54.2]} 2. e3 {[%clk 0:03:00.4]}
2... Nf6 {[%clk 0:02:53.5]} 3. c4 {[%clk 0:02:59.8]} 3... e6 {[%clk 0:02:53.3]}
4. Nc3 {[%clk 0:02:59.4]} 4... Be7 {[%clk 0:02:52.5]} 5. b3 {[%clk 0:02:59.3]}
5... O-O {[%clk 0:02:52.2]} 6. Bb2 {[%clk 0:02:59.8]} 6... c5 {[%clk 0:02:51.7]}
7. cxd5 {[%clk 0:02:59.3]} 7... exd5 {[%clk 0:02:51.6]} 8. d4 {[%clk 0:02:59]}
8... Nc6 {[%clk 0:02:51.8]} 9. Bb5 {[%clk 0:02:52.8]} 9... cxd4 {[%clk
0:02:38.5]} 10. Nxd4 {[%clk 0:02:50.6]} 10... Nxd4 {[%clk 0:02:38.1]} 11. Qxd4
{[%clk 0:02:50.1]} 11... a6 {[%clk 0:02:35.1]} 12. Be2 {[%clk 0:02:49.5]} 12...
b5 {[%clk 0:02:24.6]} 13. O-O {[%clk 0:02:42.7]} 13... Bb7 {[%clk 0:02:23.9]}
14. Bf3 {[%clk 0:02:41.2]} 14... Rc8 {[%clk 0:02:22]} 15. Rad1 {[%clk
0:02:39.2]} 15... Bc5 {[%clk 0:01:36.8]} 16. Qd3 {[%clk 0:02:24.8]} 16... Qa5
{[%clk 0:01:19]} 17. Nxd5 {[%clk 0:01:43]} 17... Nxd5 {[%clk 0:01:16.9]} 18.
Bxd5 {[%clk 0:01:42.6]} 18... Bxd5 {[%clk 0:01:12.9]} 19. Qxd5 {[%clk
0:01:36.8]} 19... Qxa2 {[%clk 0:01:12.6]} 20. Bxg7 {[%clk 0:00:50.2]} 20... Kxg7
{[%clk 0:01:10.7]} 21. Qg5+ {[%clk 0:00:45.2]} 21... Kh8 {[%clk 0:01:09.9]} 22.
Qf6+ {[%clk 0:00:45.2]} 22... Kg8 {[%clk 0:01:10.6]} 23. Rd5 {[%clk 0:00:43.7]}
23... h6 {[%clk 0:01:04.8]} 24. Qxh6 {[%clk 0:00:40.7]} 24... f5 {[%clk
0:00:37.9]} 25. Qg6+ {[%clk 0:00:38.1]} 25... Kh8 {[%clk 0:00:38.2]} 26. Rd7
{[%clk 0:00:35.8]} 26... Qb2 {[%clk 0:00:27]} 27. Qh7# {[%clk 0:00:32.8]} 1-0

[Event "*** SCC Grand Prix: Titled Tuesday Blitz"]
[Site "Chess.com"]
[Date "2020.07.07"]
[Round "5"]
[White "Alkhoori90"]
[Black "Glidzhian_Gor"]
[Result "1-0"]
[WhiteElo "2261"]
[BlackElo "2445"]
[TimeControl "180+1"]
[EndTime "10:54:37 PDT"]
[Termination "Alkhoori90 won by resignation"]

1. e4 {[%clk 0:03:00.9]} 1... c6 {[%clk 0:02:18.6]} 2. c4 {[%clk 0:03:00.4]}
2... d5 {[%clk 0:02:19.5]} 3. exd5 {[%clk 0:03:01.3]} 3... cxd5 {[%clk
0:02:19.8]} 4. cxd5 {[%clk 0:03:02.2]} 4... Nf6 {[%clk 0:02:20.3]} 5. Nc3 {[%clk
0:03:03.1]} 5... Nxd5 {[%clk 0:02:20]} 6. Nf3 {[%clk 0:03:03.6]} 6... Nc6 {[%clk
0:02:20.2]} 7. Bb5 {[%clk 0:03:03.7]} 7... e6 {[%clk 0:02:20.1]} 8. O-O {[%clk
0:03:03.9]} 8... Be7 {[%clk 0:02:19.7]} 9. Re1 {[%clk 0:03:04.1]} 9... O-O
{[%clk 0:02:19.8]} 10. d4 {[%clk 0:03:04.5]} 10... Bf6 {[%clk 0:02:19.9]} 11.
Ne4 {[%clk 0:03:04.4]} 11... a6 {[%clk 0:02:20.3]} 12. Ba4 {[%clk 0:03:02.1]}
12... Nce7 {[%clk 0:02:11.9]} 13. a3 {[%clk 0:02:57.4]} 13... b5 {[%clk
0:02:09.6]} 14. Bc2 {[%clk 0:02:54.5]} 14... Bb7 {[%clk 0:01:56.5]} 15. Qd3
{[%clk 0:02:50]} 15... Rc8 {[%clk 0:01:47.7]} 16. Nc5 {[%clk 0:02:41.2]} 16...
g6 {[%clk 0:01:21.7]} 17. Nxb7 {[%clk 0:02:39.8]} 17... Qb6 {[%clk 0:01:18.7]}
18. Nc5 {[%clk 0:02:38.8]} 18... Rfd8 {[%clk 0:01:19]} 19. b4 {[%clk 0:02:35.7]}
19... Nf5 {[%clk 0:01:14.1]} 20. Bg5 {[%clk 0:02:31.6]} 20... Bxg5 {[%clk
0:01:11.9]} 21. Nxg5 {[%clk 0:02:32.5]} 21... Nf4 {[%clk 0:01:12.8]} 22. Qf3
{[%clk 0:01:57.1]} 22... Rxd4 {[%clk 0:01:11]} 23. Nge4 {[%clk 0:01:44.6]} 23...
Nd5 {[%clk 0:00:58.1]} 24. Rad1 {[%clk 0:01:41.8]} 24... Rd8 {[%clk 0:00:40.9]}
25. g4 {[%clk 0:01:33.6]} 25... Nh4 {[%clk 0:00:24.3]} 26. Qg3 {[%clk
0:01:25.9]} 26... Rxd1 {[%clk 0:00:11.6]} 27. Rxd1 {[%clk 0:01:26.8]} 27... Nf4
{[%clk 0:00:11.2]} 28. Qxf4 {[%clk 0:01:07.8]} 28... Rxd1+ {[%clk 0:00:10.6]}
29. Bxd1 {[%clk 0:01:08.7]} 29... Qd8 {[%clk 0:00:11.5]} 30. Qd6 {[%clk
0:01:07.8]} 1-0